Cogmind - Beta 16 @@@ ROGUE MODE // 2025.11.27 @ 22:22:12 Player: Boris Result: Destroyed by H-71 Marshal with Heavy Mass Driver Performance ------------- Evolutions (6) 3000 Regions Visited (17) 3400 Robots Destroyed (321) 1605 Value Destroyed (12602) 12602 Prototype IDs (63) 1260 Alien Tech Used (0) 0 Bonus (6045) 6045 TOTAL SCORE: 27912 Bonus ------- High Alert Combat Kills 740 Follower Combat Kills 2211 Met Warlord at Base 500 MAIN.C Attacked Warlord 500 Warlord Defense Kills 1990 Built Enhanced Grunts 300 Met R17 at Cetus 500 Friendly Fire -696 Cogmind --------- Core Integrity 0/1150 Matter 2/300 Energy 368/380 System Corruption 78% Temperature Cool (8) Movement Walking (117) Location -4/Armory Parts ------- > --- POWER (2) -------- Antimatter Reactor Fission-Nuclear Core > --- PROPULSION (4) --- Centrium Leg Centrium Leg Centrium Leg VSS-FC Exoskeleton > --- UTILITY (9) ------ Armored Scrap Engine Experimental Cooling System Medium Storage Unit Enhanced Optical Array Improved Targeting Computer Improved Launcher Guidance Computer Improved Core Shielding Hacking Suite > --- WEAPON (4) ------- Hypervelocity Railgun (fused) Hypervelocity Railgun Heavy Proton Missile Launcher Hpw. Thermal Wave Construct/G > --- INVENTORY (10) --- Centrium Leg Centrium Leg Advanced Heat Sink Matter Compressor (0) Advanced ECM Suite Vortex Shotgun (14) Peak State ------------ > --- POWER ------------ Antimatter Reactor Fission-Nuclear Core > --- PROPULSION ------- Centrium Leg Centrium Leg Centrium Leg VSS-FC Exoskeleton > --- UTILITY ---------- Armored Scrap Engine Experimental Cooling System Medium Storage Unit Enhanced Optical Array Improved Targeting Computer Improved Launcher Guidance Computer Improved Core Shielding Hacking Suite > --- WEAPON ----------- Hypervelocity Railgun Hypervelocity Railgun Heavy Proton Missile Launcher Hpw. Thermal Wave Construct/G > --- INVENTORY -------- Centrium Leg Centrium Leg Advanced Heat Sink Matter Compressor Advanced ECM Suite Vortex Shotgun [Rating: 131] Favorites ----------- Power Constructs Engine Light Deuterium Engine Power Core Constructs Reactor Antimatter Reactor Propulsion Armored Treads Treads Armored Treads Leg Constructs Wheel Armored Huge Wheel Hover Unit Aerolev Unit Flight Unit Nuclear Pulse Thruster Utility Armored Scrap Engine Device Armored Scrap Engine Storage Large Storage Unit Processor Advanced Targeting Computer Hackware Improved Hacking Suite Protection Centrium Medium Armor Plating Weapon Improved Spread Laser Energy Gun Improved Spread Laser Energy Cannon Proton Cannon Ballistic Gun Constructs Ballistic Cannon Constructs Launcher Heavy Proton Missile Launcher Special Weapon Flamer Slashing Weapon Nanosword Special Melee Weapon Improved Datajack Build | -11 -10 -10 -8 -8 -8 -6 -6 -6 -6 -6 -5 -5 -5 -5 -4 -4 -4 ------- Run | Yrd Mat Sub Mat Sto Rec Fac Ext Cet Arc Hub Fac Upp Upp War Pro Fac Arm Slots Evolved 12 | . . . 4 . . 4 . . . . 2 . . . . 2 . Power 1 | . . . . . . 1 . . . . . . . . . . . Propulsion 2 | . . . 1 . . 1 . . . . . . . . . . . Utility 7 | . . . 2 . . 2 . . . . 2 . . . . 1 . Weapon 2 | . . . 1 . . . . . . . . . . . . 1 . Parts Attached 175 | 5 3 12 29 16 1 10 18 2 4 3 14 1 1 4 3 23 26 Power 7 | 1 . 1 1 2 . . . . . . . . . . . . 2 Engine 5 | 1 . 1 1 2 . . . . . . . . . . . . . Core . | . . . . . . . . . . . . . . . . . . Reactor 2 | . . . . . . . . . . . . . . . . . 2 Propulsion 34 | 2 . 1 4 7 . 3 6 . . . . . . . . 5 6 Treads 17 | 2 . 1 4 3 . . 5 . . . . . . . . 2 . Leg 8 | . . . . . . . 1 . . . . . . . . 2 5 Wheel 4 | . . . . . . 2 . . . . . . . . . 1 1 Hover 2 | . . . . 2 . . . . . . . . . . . . . Flight 3 | . . . . 2 . 1 . . . . . . . . . . . Utility 76 | . 3 3 9 3 1 5 10 2 3 3 11 1 1 2 3 7 9 Device 38 | . . 3 3 3 1 4 4 1 3 . 7 1 1 1 1 3 2 Storage 8 | . 2 . 2 . . . 1 . . . . . . . 1 1 1 Processor 10 | . . . 2 . . . 1 . . . 2 . . 1 1 . 3 Hackware 11 | . . . 1 . . . 3 . . 3 1 . . . . 1 2 Protection 9 | . 1 . 1 . . 1 1 1 . . 1 . . . . 2 1 Artifact . | . . . . . . . . . . . . . . . . . . Weapon 58 | 2 . 7 15 4 . 2 2 . 1 . 3 . . 2 . 11 9 Energy Gun 18 | 1 . 3 8 . . 1 . . . . 1 . . 1 . 3 . Energy Cannon 4 | . . . 2 . . . 1 . . . . . . . . 1 . Ballistic Gun 15 | 1 . . 2 2 . . . . . . . . . . . 5 5 Ballistic Cannon 5 | . . 3 . . . . 1 . . . . . . . . . 1 Launcher 8 | . . . . 2 . 1 . . . . 1 . . . . 1 3 Special Weapon 2 | . . . 2 . . . . . . . . . . . . . . Impact Weapon . | . . . . . . . . . . . . . . . . . . Slashing Weapon 4 | . . 1 . . . . . . 1 . 1 . . 1 . . . Piercing Weapon . | . . . . . . . . . . . . . . . . . . Special Melee Weapon 2 | . . . 1 . . . . . . . . . . . . 1 . Unidentified Prototypes 25 | . . . 5 7 1 1 2 1 . . 5 . . 2 . . 1 Corrupted Parts 4 | . . . . . . . . 1 . . . . . . . . 3 System Corruption 30 | . . . . . . . . 2 . . . . . . . . 28 Parts Lost 58 | . . 2 . . . 14 4 1 . . . . . 1 1 25 10 Power 5 | . . 1 . . . 3 . . . . . . . . . . 1 Propulsion 15 | . . . . . . 4 2 1 . . . . . . . 5 3 Utility 22 | . . 1 . . . 3 2 . . . . . . 1 . 12 3 Weapon 16 | . . . . . . 4 . . . . . . . . 1 8 3 Highest Loss Streak 11 | . . 1 . . . 11 2 1 . . . . . 1 1 8 4 To Critical Strikes 3 | . . . . . . 1 . 1 . . . . . . . 1 . Average Backups 14 | 2 6 12 16 18 15 14 17 14 14 13 14 13 13 14 14 13 4 Power . | . 1 . . . . . . . . . . . . . . . . Propulsion 1 | . . . 1 5 4 . . . . . . . . . . . . Utility 7 | . 2 4 5 6 6 11 13 12 13 12 10 8 8 8 8 7 2 Weapon 4 | 1 2 6 8 7 4 2 1 1 1 1 3 5 4 5 5 4 2 Tool/Special . | . . . . . . . . . . . . . . . . . . Unused Backups 52 | . . 6 7 5 5 1 4 2 5 . 7 . . 1 1 4 4 Power 2 | . . . . 1 . . 1 . . . . . . . . . . Propulsion 6 | . . . . 1 2 1 . . . . . . . . . . 2 Utility 24 | . . 1 2 1 . . 1 2 5 . 6 . . 1 1 3 1 Weapon 19 | . . 5 5 2 3 . 1 . . . 1 . . . . 1 1 Tool/Special 1 | . . . . . . . 1 . . . . . . . . . . Average Slot Usage (%) 78 | . 97 99 98 99 79 62 72 63 61 62 66 64 64 63 63 53 78 Engine 5 | . 14 13 9 9 8 8 1 6 5 . . . . . . 2 . Reactor 1 | . . . . . . . 1 . . 6 1 4 5 5 4 . 7 Treads 13 | . 28 28 26 26 17 . 16 2 4 4 . . 4 4 . . 4 Device 13 | . . 10 14 13 12 20 12 16 15 9 10 13 17 16 15 12 19 Storage 7 | . 8 14 9 9 9 6 6 6 6 6 5 5 5 5 5 4 . Processor 5 | . . . 8 9 9 2 . . . . . 5 5 5 11 8 3 Hackware 4 | . . . 2 4 . . 9 6 4 15 20 8 5 4 . 3 6 Protection 2 | . 16 3 . . . 2 2 3 4 . 1 5 5 5 5 3 4 Energy Gun 9 | . 14 2 16 25 16 2 2 . 9 13 11 11 8 3 . . 3 Energy Cannon 1 | . . . . . 3 4 1 3 . . . . . . 3 2 2 Ballistic Gun 1 | . 14 2 5 . . . . 3 1 . . . . . . 1 8 Ballistic Cannon 3 | . . 20 . . . 1 7 8 1 . . . 2 4 . 2 1 Slashing Weapon 1 | . . 3 . . . 1 . . 2 2 1 . . 1 4 3 . Peak Build Rating 131 | 5 8 18 39 46 56 82 76 89 95 89 114 115 125 121 124 130 131 Average Rating 65 | 3 7 14 31 43 45 61 64 74 86 83 98 113 110 113 116 97 105 On Entrance 65 | . 5 8 17 39 45 46 51 63 82 84 89 103 115 113 120 106 85 Avg Prop Armor Cover (%) 5 | . . . . . . 2 4 . . . . . . . . 7 5 Naked Turns . | . . . . . . . . . . . . . . . . . . Heaviest Build 99 | 7 30 38 66 61 59 69 92 75 68 63 81 75 81 99 99 89 96 Greatest Support 184 | 40 40 40 60 60 60 95 101 138 184 184 104 91 55 99 115 106 105 Greatest Overweight (x) 10 | . . . 1 1 1 1 4 1 . . 1 1 1 1 . 10 7 Average Overweight (x) . | . . . . . . . . . . . . . 1 . . . 1 Largest Inventory Capacity 20 | 5 15 15 20 20 20 20 20 15 15 15 15 15 15 15 15 15 10 Average Capacity 16 | 5 9 15 17 20 20 20 19 15 15 15 15 15 15 15 15 14 5 Most Carried 20 | 4 11 15 20 20 20 18 20 15 15 14 15 15 15 15 15 15 6 Average Carried 14 | 2 6 13 17 19 15 14 17 14 14 13 14 14 14 14 14 13 4 Final Capacity 20 | 5 15 15 20 20 20 20 15 15 15 15 15 15 15 15 15 5 10 Final Carried 20 | 2 11 13 20 20 13 16 15 15 14 13 15 14 15 15 15 5 6 Scrap Engine Consumption 276 | . . . . . 43 32 59 17 14 4 26 5 4 14 13 13 32 Constructs Created 15 | . . . . . 4 1 3 1 . . 1 . . . . . 5 Constructs Modified 97 | . . . . . 13 13 20 6 8 3 8 4 3 6 5 6 2 Class Distribution -------------------- 31% | Construct 24% | Gunner 15% | Mutant 7% | Commander-Construct 6% | Hacker-Construct 4% | Scavenger-Mutant 3% | Scavenger-Tank Dominant Class ---------------- Mutant | -10/Materials Mutant | -10/Subcaves Gunner | -8/Materials Gunner | -8/Storage Construct | -8/Recycling Construct | -6/Factory Scavenger-Mutant | -6/Extension Commander-Construct | -6/Cetus Commander-Construct | -6/Archives Hacker-Construct | -6/Hub_04(d) Hacker-Construct | -5/Factory Hacker-Construct | -5/Upper Caves Construct | -5/Upper Caves Construct | -5/Warlord Construct | -4/Proximity Caves Construct | -4/Factory Scavenger-Tank | -4/Armory Resources | -11 -10 -10 -8 -8 -8 -6 -6 -6 -6 -6 -5 -5 -5 -5 -4 -4 -4 ----------- Run | Yrd Mat Sub Mat Sto Rec Fac Ext Cet Arc Hub Fac Upp Upp War Pro Fac Arm Matter Collected 6477 | 170 379 600 411 380 87 196 413 73 74 134 693 57 78 281 402 1253 796 Remotely . | . . . . . . . . . . . . . . . . . . Salvage Created 12953 | 60 527 381 880 1563 351 1524 1311 454 395 182 1520 8 215 412 283 1518 1369 Parts 659 | 2 37 27 63 85 21 61 57 18 23 8 74 . 6 32 17 65 63 Haulers Intercepted 19 | . 2 . 3 6 . 2 1 . . . 4 . . . . 1 . Recyclers Shooed 3 | . 2 . . 1 . . . . . . . . . . . . . Parts Field Recycled . | . . . . . . . . . . . . . . . . . . Retrieved Matter . | . . . . . . . . . . . . . . . . . . Parts Self-Destructed 30 | . . 10 . . . . . . . . . . 1 . 19 . . Prevented 3 | . . . . . . . . . . . . . 3 . . . . Parts Restored . | . . . . . . . . . . . . . . . . . . Kills | -11 -10 -10 -8 -8 -8 -6 -6 -6 -6 -6 -5 -5 -5 -5 -4 -4 -4 ------- Run | Yrd Mat Sub Mat Sto Rec Fac Ext Cet Arc Hub Fac Upp Upp War Pro Fac Arm Combat Hostiles Destroyed 233 | . 10 11 20 31 7 19 18 5 2 3 28 . 3 21 13 19 23 Melee 3 | . . . . . . . . . . . . . . . . 3 . Guns 105 | . 10 . 16 31 7 2 2 . 2 3 14 . 3 . . 7 8 Cannons 54 | . . 11 3 . . 10 14 2 . . . . . . 5 5 4 AOE 58 | . . . . . . 6 . 1 . . 14 . . 21 7 4 5 Classes Destroyed 22 | 1 6 2 3 1 . 2 2 . . 1 1 . 1 1 . 1 . Worker 16 | . . . 2 3 . 5 1 . . 1 2 . . . . 2 . Builder 13 | . 1 . . 2 3 3 1 . . . 3 . . . . . . Tunneler 2 | . 1 . . . . 1 . . . . . . . . . . . Hauler 19 | . 2 . 3 6 . 2 1 . . . 4 . . . . 1 . Recycler 12 | 1 1 . 1 2 . 3 . . . . 1 . . . . 3 . Operator 17 | . 1 . 1 2 . . 2 . 7 . 2 . . . . 2 . Watcher 8 | . . . 2 2 . . 1 1 . . 1 . . . . 1 . Swarmer 60 | . 6 1 7 3 . 10 . . . . 9 . . 9 9 4 2 Saboteur 3 | . . . . . . . . . . . 2 . . . . . 1 Grunt 57 | . 4 . 5 15 . 3 9 . . 1 2 . 2 6 . 4 6 Brawler 3 | . . . . . . . . . . . . . 1 1 . . 1 Duelist 6 | . . . . . . . 1 . . . . . . . . . 5 Protector 2 | . . . . . . . . . . . . . . 1 . . 1 Sentry 43 | . . . 8 12 2 . 7 . 2 1 3 . . . 1 6 1 Demolisher 1 | . . . . . . . . . . 1 . . . . . . . Specialist 7 | . . . . . . 3 . . . . 2 . . 1 . . 1 Hunter 11 | . . . . 1 . . . . . . 5 . . 2 2 1 . Programmer 18 | . . . . . . 3 . . . . 5 . . 1 1 3 5 Heavy 1 | . . . . . . . . . . . . . . . . 1 . Behemoth 1 | . . . . . . . 1 . . . . . . . . . . Cetus Guard 5 | . . . . . . . . 5 . . . . . . . . . Artisan 1 | . . 1 . . . . . . . . . . . . . . . Subdweller 15 | . . 10 . . 5 . . . . . . . . . . . . Decomposer 1 | . . . . . . . . . . . . 1 . . . . . Thug 1 | . . . . . . . . 1 . . . . . . . . . Best Kill Streak 14 | 1 8 2 4 8 4 8 3 3 3 1 14 . 3 11 5 5 5 Combat Bots Only 11 | . 6 2 4 8 4 5 2 3 1 1 11 . 3 11 5 4 5 Max Kills in Single Turn 5 | 1 1 1 2 2 1 3 2 2 1 1 4 1 1 5 3 4 2 Gunslinging 1 | . . . . 1 . . . . . . 1 . . . . 1 . Exploded 5 | . . . . . . 2 . 1 . . 4 . . 5 3 2 1 Melee 1 | . . . . . . . . . . . . . . . . 1 . Uniques/NPCs Destroyed . | . . . . . . . . . . . . . . . . . . Combat | -11 -10 -10 -8 -8 -8 -6 -6 -6 -6 -6 -5 -5 -5 -5 -4 -4 -4 -------- Run | Yrd Mat Sub Mat Sto Rec Fac Ext Cet Arc Hub Fac Upp Upp War Pro Fac Arm Hostile Shots Fired 1552 | . 40 41 46 60 8 248 270 25 2 36 85 3 18 63 80 366 161 Missed 517 | . 11 16 8 19 2 72 102 5 1 14 28 1 3 19 20 152 44 Hits 1035 | . 29 25 38 41 6 176 168 20 1 22 57 2 15 44 60 214 117 Melee 6 | . . . . . . 1 . . . . . . 3 . . . 2 Projectile 1029 | . 29 25 38 41 6 175 168 20 1 22 57 2 12 44 60 214 115 AOE 5 | . . . . 3 . . . . . . . . . . . 2 . Critical Strikes 46 | . . . 4 1 . 8 7 5 . . 2 . . 3 . 8 8 Actively Blocked 1 | . . . . . . . . . . . . . . . . . 1 Part Disruptions 7 | . . . . . . 1 . . . . . . . . 1 1 4 Damage Taken 19740 | . 287 539 477 665 123 3144 1514 468 22 181 1057 39 344 1060 1072 6388 2360 Core 2659 | . 61 75 59 57 18 544 147 81 22 31 113 . 19 99 168 895 270 Absorbed by Shields 798 | . . . . . . . 512 83 . . . . . . . . 203 Redirected to Shielding 50 | . . . . . . . . . . . . . . . . . 50 Regen/Repaired (Parts) 3827 | . . . . 242 . 221 536 244 33 68 509 330 239 196 656 453 100 Core Remaining (%) 56 | 100 . 45 . . 75 . . . . 2 . . . . 60 . . Volleys Fired 704 | 3 39 51 42 59 15 70 87 18 6 21 66 10 5 23 37 72 80 Largest 4 | 2 2 2 3 3 3 2 3 2 2 2 3 2 3 2 1 4 4 Hottest 273 | 70 70 80 265 225 273 273 216 132 121 121 201 152 232 113 70 162 253 Shots Fired 1335 | 6 78 93 122 177 42 94 148 27 11 35 122 12 15 25 37 128 163 Gun 821 | 6 78 11 100 177 38 30 19 . 6 35 112 12 15 . . 88 94 Cannon 433 | . . 82 5 . 4 58 129 27 5 . . . . 5 30 34 54 Launcher 64 | . . . . . . 6 . . . . 10 . . 20 7 6 15 Special 17 | . . . 17 . . . . . . . . . . . . . . Kinetic 578 | 3 39 82 22 7 . 33 82 8 6 30 67 10 5 1 . 95 88 Thermal 598 | 3 39 . 100 170 42 55 24 . 5 5 44 . 5 4 30 24 48 Explosive 47 | . . . . . . 4 . . . . 10 . . 20 7 6 . Electromagnetic 101 | . . 11 . . . 2 42 19 . . 1 2 5 . . . 19 Entropic 11 | . . . . . . . . . . . . . . . . 3 8 Robot Hit Streak 22 | 5 8 13 15 22 20 10 11 14 8 8 12 3 8 14 7 11 8 Robot Miss Streak 9 | . 3 5 6 9 4 4 4 1 1 3 6 1 2 1 4 4 6 Penetration Max 3 | . . . . . . . 1 . . 1 1 . . . . . 3 Secondary Targets 13 | . 1 . . 2 1 . . . . . 5 . 2 . . 2 . Max Gunslinging Chain 1 | . 1 . . 1 1 . . . . . 1 . 1 . . 1 . Shots Hit Robots 889 | 5 49 60 78 137 29 70 100 23 20 19 66 6 11 9 20 99 88 Core Hits 734 | 2 25 22 68 181 36 71 45 13 8 11 77 2 7 55 13 50 48 Critical Kills 19 | . . 2 . . . 1 4 2 . 1 4 . . . . . 5 Critical Parts Destroyed 22 | . . . . . . 1 9 . 1 1 . 1 . . . 1 8 Critical Strikes 64 | . 4 7 5 . . 2 13 2 1 2 4 1 . . . 3 20 Burn 9 | . 4 . 5 . . . . . . . . . . . . . . Destroy 49 | . . 7 . . . 2 13 2 1 2 4 1 . . . 1 16 Blast 1 | . . . . . . . . . . . . . . . . . 1 Corrupt 1 | . . . . . . . . . . . . . . . . . 1 Sever 2 | . . . . . . . . . . . . . . . . 2 . Detonate 2 | . . . . . . . . . . . . . . . . . 2 Melee Attacks 124 | . . 20 3 8 1 17 . . 10 9 6 . . 1 1 48 . Impact . | . . . . . . . . . . . . . . . . . . Slashing 124 | . . 20 3 8 1 17 . . 10 9 6 . . 1 1 48 . Piercing . | . . . . . . . . . . . . . . . . . . Sneak Attacks 25 | . . 2 . 1 . 6 . . 9 . 2 . . . . 5 . Combat Hostiles . | . . . . . . . . . . . . . . . . . . Follow-up Attacks . | . . . . . . . . . . . . . . . . . . Damage Inflicted 35824 | 60 639 1589 1491 3068 689 3351 2488 1271 1326 599 4634 169 323 3943 1879 4836 3469 Guns 11761 | 60 627 87 1177 2872 623 309 390 . 216 568 1672 169 323 . . 1562 1106 Cannons 8022 | . . 1143 74 . 66 1302 2060 648 96 . . . . 133 880 697 923 Explosions 11894 | . . . . . . 1279 . 623 . . 2798 . . 3810 999 945 1440 Melee 3831 | . . 359 71 137 . 461 . . 1007 . 164 . . . . 1632 . Ramming 154 | . 12 . 7 59 . . 38 . 7 31 . . . . . . . Kinetic 8305 | 24 306 1143 110 52 . 680 1132 134 216 473 1008 114 90 51 . 1687 1085 Thermal 11200 | 36 321 . 1303 2820 689 1075 493 623 96 95 996 . 97 82 880 846 748 Explosive 8684 | . . . . . . 920 . . . . 2415 . . 3810 999 540 . Electromagnetic 3061 | . . 87 . . . 215 825 514 . . 51 55 136 . . . 1178 Impact . | . . . . . . . . . . . . . . . . . . Slashing 3831 | . . 359 71 137 . 461 . . 1007 . 164 . . . . 1632 . Piercing . | . . . . . . . . . . . . . . . . . . Entropic 589 | . . . . . . . . . . . . . . . . 131 458 Highest Corruption 78 | . . . . 1 1 2 2 4 4 . 3 3 3 3 2 39 78 Average Corruption 8 | . . . . 1 1 1 2 3 3 . 1 3 3 3 1 20 53 Corruption Purged 8 | . . . . . . . . . 4 . . . . . 2 2 . Corruption Blocked . | . . . . . . . . . . . . . . . . . . Effects 244 | . . . . 2 23 10 30 5 6 . 4 12 10 3 6 46 87 Message Errors 52 | . . . . 1 4 4 5 1 3 . . 4 2 2 3 8 15 Matter Fused 36 | . . . . . 10 . 3 1 . . 2 1 4 . . 5 10 Heat Flow Errors 28 | . . . . . 1 3 4 . 1 . . 4 1 . 2 6 6 Energy Discharges 28 | . . . . . 1 2 6 . 1 . . 1 3 . . 3 11 Parts Rejected 4 | . . . . . . . . . . . . . . . . . 4 Parts Fused 5 | . . . . . 1 . 1 . . . . . . . . 2 1 Data Loss (minor) 25 | . . . . . 4 1 5 1 . . 1 . . . . 6 7 Data Loss (major) 18 | . . . . 1 . . 4 1 . . 1 2 . 1 . 3 5 Misfires 10 | . . . . . 1 . 1 1 . . . . . . . 1 6 Alerts 6 | . . . . . 1 . 1 . . . . . . . 1 2 1 Misdirections 2 | . . . . . . . . . . . . . . . . . 2 Weapon Failures 30 | . . . . . . . . . 1 . . . . . . 10 19 Overload Shots . | . . . . . . . . . . . . . . . . . . Overflow Damage 1421 | . . 54 2 16 . 171 12 28 375 . 135 . . 147 166 214 101 Projectiles 156 | . . 17 . . . . 12 . . . . . . 18 58 . 51 Explosions 609 | . . . . . . 99 . 28 . . 135 . . 129 108 60 50 Melee 656 | . . 37 2 16 . 72 . . 375 . . . . . . 154 . Knockbacks 41 | . 1 9 . 2 . 15 8 . . . . . . . . . 6 Impact 4 | . 1 . . 2 . . 1 . . . . . . . . . . Kinetic 35 | . . 9 . . . 14 6 . . . . . . . . . 6 Secondary 2 | . . . . . . 1 1 . . . . . . . . . . Self-Inflicted Damage 713 | . . . . . . 250 . . . . . . . . . 177 286 Shots 19 | . . . . . . 7 . . . . . . . . . 4 8 Rammed 11 | . 2 . 2 4 . . 2 . 1 . . . . . . . . Targets Rammed 16 | . 2 . 2 6 . . 3 . 1 1 . . . . . . 1 Kicked 1 | . . . . . . . . . . . . . . . . . 1 Crushed 4 | . . . . 2 . . 1 . . 1 . . . . . . . Highest Temperature 520 | 27 162 . 380 303 414 520 278 234 137 335 338 290 72 151 213 238 203 Average Temperature 97 | 14 53 . 108 95 100 172 69 78 30 114 90 110 41 70 75 77 64 Received Heat Transfer 2411 | . 81 90 225 270 6 228 505 . . 9 108 18 108 45 36 475 207 Effects 12 | . . . 2 1 1 4 . . . 2 1 1 . . . . . Shutdowns 2 | . . . . . 1 1 . . . . . . . . . . . Energy Bleed 6 | . . . 2 1 . 1 . . . . 1 1 . . . . . Interference 2 | . . . . . . . . . . 2 . . . . . . . Short Circuit 2 | . . . . . . 2 . . . . . . . . . . . Siege Activations . | . . . . . . . . . . . . . . . . . . Martial Activations . | . . . . . . . . . . . . . . . . . . Shielding Activations . | . . . . . . . . . . . . . . . . . . Robots Disrupted 1 | . . . 1 . . . . . . . . . . . . . . Combat Hostiles . | . . . . . . . . . . . . . . . . . . Robots Corrupted 10 | . . . . . . . 2 2 . . . . . . . . 6 Combat Hostiles 10 | . . . . . . . 2 2 . . . . . . . . 6 Parts Fried 17 | . . 1 . . . . 8 1 . . . . . . . . 7 Impact Corruptions . | . . . . . . . . . . . . . . . . . . Robots Melted 4 | . . . 2 . . 1 . . . . . . . . 1 . . Combat Hostiles 3 | . . . 1 . . 1 . . . . . . . . 1 . . Parts Melted 29 | 1 2 . 5 2 1 3 2 . . . 3 . . 1 2 7 . Heat Transferred 15399 | 111 1221 . 3240 2375 786 1708 634 500 75 250 1604 . 148 74 777 1027 869 Parts Sabotaged . | . . . . . . . . . . . . . . . . . . Parts Stolen . | . . . . . . . . . . . . . . . . . . Parts Stripped . | . . . . . . . . . . . . . . . . . . Power Chain Reactions 7 | . . . . . . 1 . 2 . . . . . . . . 4 Alert | -11 -10 -10 -8 -8 -8 -6 -6 -6 -6 -6 -5 -5 -5 -5 -4 -4 -4 ------- Run | Yrd Mat Sub Mat Sto Rec Fac Ext Cet Arc Hub Fac Upp Upp War Pro Fac Arm Maximum Alert Level 3 | . . . 1 2 1 1 3 2 1 2 3 . . . . 1 3 Low Security (%) 58 | 100 100 . 96 16 96 78 62 . 4 16 42 . . . . 39 75 Level 1 20 | . . . 3 19 3 21 11 . 95 56 39 . . . . 60 8 Level 2 18 | . . . . 63 . . 9 100 . 27 17 . . . . . 11 Level 3 2 | . . . . . . . 16 . . . . . . . . . 4 Level 4 . | . . . . . . . . . . . . . . . . . . Level 5 . | . . . . . . . . . . . . . . . . . . High Security . | . . . . . . . . . . . . . . . . . . Max Security . | . . . . . . . . . . . . . . . . . . Peak Influence 1070 | 5 147 . 276 593 251 321 1070 651 364 572 734 . . . . 351 714 Initial 596 | . . . . 113 219 50 119 596 226 65 266 . . . . 150 169 Average 212 | . 37 . 35 417 26 124 253 591 270 295 256 . . . . 223 202 Influence Increases 10779 | 5 313 30 658 1306 118 788 1662 345 278 808 1314 15 70 405 300 1123 1241 Destroy 0b10 Robot/C 5420 | . 200 20 400 720 40 380 720 160 80 340 560 . 60 400 260 380 700 Destroy 0b10 Robot/NC 495 | 5 30 . 45 90 20 70 55 10 35 15 65 . . 5 . 40 10 Destroy Leader 1010 | . 34 10 120 226 . 64 96 . . 72 110 . 10 . 40 124 104 Allied During Kill 1422 | . . . . 133 2 . 643 157 115 216 . . . . . . 156 Successful Hack 281 | . 34 . 15 31 24 20 55 . . 36 61 . . . . 5 . Select Force Hacks 90 | . . . . 30 30 . . . . . 30 . . . . . . Disable Machine 600 | . . . 30 60 . 75 30 . 45 60 165 . . . . 75 60 Destroy Structure 616 | . . . 3 1 2 69 18 18 3 54 188 . . . . 184 76 Advance Influence 200 | . . . . . . 50 . . . . . . . . . 150 . Partial Spotted 15 | . . . . . . . . . . 15 . . . . . . . Lose Combat Pursuer 630 | . 15 . 45 15 . 60 45 . . . 135 15 . . . 165 135 Influence Decreases 10083 | 5 196 147 388 1012 682 545 839 846 657 451 1123 583 236 42 663 776 892 Entered New Map 2736 | . . 57 . 157 345 . 124 470 339 121 277 273 32 . 363 . 178 Time Decay 5477 | 5 196 90 388 715 297 410 510 206 278 170 386 310 204 32 290 526 464 Lost Part 555 | . . . . . . 135 40 10 . . . . . 10 10 250 100 Lost Ally 821 | . . . . 140 40 . 121 160 40 160 10 . . . . . 150 Purge Threat 494 | . . . . . . . 44 . . . 450 . . . . . . Squads Dispatched 42 | . 1 . 1 7 . 4 4 . . 7 9 . . . . 4 5 Investigation 12 | . . . . 3 . 2 . . . 4 2 . . . . 1 . Extermination 11 | . . . . . . 2 . . . 1 2 . . . . 3 3 Reinforcement 13 | . 1 . 1 1 . . 4 . . 2 3 . . . . . 1 Assault 4 | . . . . 1 . . . . . . 2 . . . . . 1 Garrison 2 | . . . . 2 . . . . . . . . . . . . . Intercept . | . . . . . . . . . . . . . . . . . . Searches Triggered . | . . . . . . . . . . . . . . . . . . Construction Impeded 3 | . . . . . . . 2 . . . 1 . . . . . . Haulers Reinforced 1 | . . . . . . . . . . . 1 . . . . . . Active Scanning Responses . | . . . . . . . . . . . . . . . . . . Cargo Convoy Interrupts 2 | . . . . . . 1 . . . . 1 . . . . . . Stealth | -11 -10 -10 -8 -8 -8 -6 -6 -6 -6 -6 -5 -5 -5 -5 -4 -4 -4 --------- Run | Yrd Mat Sub Mat Sto Rec Fac Ext Cet Arc Hub Fac Upp Upp War Pro Fac Arm Distress Signals 27 | . 3 . 4 . 2 1 5 2 . 3 2 . . 2 . 1 2 Communications Jammed 1 | . . . . . . . . . . . . . . . . 1 . Distress Signals . | . . . . . . . . . . . . . . . . . . Times Spotted 425 | . 24 11 30 40 6 42 37 9 10 16 50 1 3 47 12 42 45 Peak Tracking Total 16 | . 9 2 5 6 4 11 4 5 1 4 15 1 3 16 5 11 7 Tactical Retreats 29 | . 1 . 2 1 1 3 2 . . . 4 1 . . . 8 6 ECM-based Alert Blocks 5 | . . . . . . . . . . . 1 . . . . 4 . Traps | -11 -10 -10 -8 -8 -8 -6 -6 -6 -6 -6 -5 -5 -5 -5 -4 -4 -4 ------- Run | Yrd Mat Sub Mat Sto Rec Fac Ext Cet Arc Hub Fac Upp Upp War Pro Fac Arm Traps Triggered 4 | . . . . . . 1 . . . 1 1 . . . . 1 . Indirectly 1 | . . . . . . 1 . . . . . . . . . . . Trap Hack Attempts 72 | . . . 72 . . . . . . . . . . . . . . Triggered . | . . . . . . . . . . . . . . . . . . Disarmed . | . . . . . . . . . . . . . . . . . . Reprogrammed 6 | . . . 6 . . . . . . . . . . . . . . Reused . | . . . . . . . . . . . . . . . . . . Traps Extracted . | . . . . . . . . . . . . . . . . . . Installed . | . . . . . . . . . . . . . . . . . . Triggered . | . . . . . . . . . . . . . . . . . . Machines | -11 -10 -10 -8 -8 -8 -6 -6 -6 -6 -6 -5 -5 -5 -5 -4 -4 -4 ---------- Run | Yrd Mat Sub Mat Sto Rec Fac Ext Cet Arc Hub Fac Upp Upp War Pro Fac Arm Machines Disabled 44 | . . 1 2 4 . 5 4 . 3 4 11 . . . . 6 4 Max in Single Turn 5 | . . 1 1 1 . 5 1 . 1 1 2 . . . . 4 1 Garrison Access 2 | . . . . 1 . 1 . . . . . . . . . . . Machines Repaired . | . . . . . . . . . . . . . . . . . . Machines Dismantled . | . . . . . . . . . . . . . . . . . . Machines Sabotaged . | . . . . . . . . . . . . . . . . . . Overloaded Fab Kills . | . . . . . . . . . . . . . . . . . . Hacking | -11 -10 -10 -8 -8 -8 -6 -6 -6 -6 -6 -5 -5 -5 -5 -4 -4 -4 --------- Run | Yrd Mat Sub Mat Sto Rec Fac Ext Cet Arc Hub Fac Upp Upp War Pro Fac Arm Machines Accessed 99 | . 6 2 6 16 11 11 12 . . 7 13 1 . 4 . 7 3 Terminals 63 | . 5 . 6 11 5 3 12 . . 7 9 . . . . 4 1 Fabricators 7 | . . . . . . 3 . . . . 1 . . . . 2 1 Repair Stations 5 | . 1 . . 2 . 2 . . . . . . . . . . . Recycling Units 10 | . . . . 2 4 2 . . . . . . . . . 1 1 Scanalyzers 2 | . . . . . . . . . . . 2 . . . . . . Garrison Access 3 | . . . . 1 . 1 . . . . 1 . . . . . . Total Hacks 282 | . 19 5 19 49 37 22 35 . . 16 45 1 . 13 . 12 9 Successful 175 | . 11 5 11 32 24 7 15 . . 9 36 1 . 13 . 6 5 Failed 106 | . 8 . 8 17 12 15 20 . . 7 9 . . . . 6 4 Catastrophic 10 | . 1 . 4 . 1 3 . . . . . . . . . 1 . Database Lockouts 1 | . . . . . 1 . . . . . . . . . . . . Manual 149 | . 16 . 15 31 17 10 15 1 . 9 27 . . . . 7 1 Terminals 196 | . 18 . 19 32 22 7 35 . . 16 37 . . . . 9 1 Fabricators 16 | . . . . . . 7 . . . . 3 . . . . 2 4 Repair Stations 17 | . 1 . . 11 . 5 . . . . . . . . . . . Recycling Units 23 | . . . . 5 11 2 . . . . . . . . . 1 4 Scanalyzers 4 | . . . . . . . . . . . 4 . . . . . . Garrison Access 3 | . . . . 1 . 1 . . . . 1 . . . . . . Terminal Hacks 78 | . 3 5 3 10 9 . 11 . . 3 16 1 . 13 . 3 1 Record 8 | . . 4 . . 2 . . . . . . . . 2 . . . Part Schematic 5 | . . . . . 2 . 1 . . . 2 . . . . . . Robot Analysis 4 | . 2 . 1 1 . . . . . . . . . . . . . Prototype ID Bank 11 | . . . . . 1 . . . . . . . . 10 . . . Open Door 13 | . . . . 3 . . 7 . . . . 1 . 1 . . 1 Branch Access Points 4 | . . . 1 . . . . . . . 2 . . . . 1 . Emergency Access Points 1 | . . . . . . . . . . . 1 . . . . . . Terminal Index 5 | . 1 . . 1 . . 1 . . 1 1 . . . . . . Fabricator Index 1 | . . . . . . . . . . . 1 . . . . . . Alert Level 4 | . . . . . 1 . . . . . 2 . . . . 1 . Unreport Threat 5 | . . . . . . . 2 . . . 3 . . . . . . Locate Traps 4 | . . . 1 1 . . . . . . 2 . . . . . . Recall Extermination 1 | . . . . . . . . . . . 1 . . . . . . Hauler Manifests 3 | . . . . 1 1 . . . . . 1 . . . . . . Zone Layout 6 | . . . . 3 . . . . . 2 . . . . . 1 . Proto ID Catalog 1 | . . 1 . . . . . . . . . . . . . . . Release Object 2 | . . . . . 2 . . . . . . . . . . . . Fabricator Hacks 5 | . . . . . . 1 . . . . 1 . . . . 1 2 Network Status 2 | . . . . . . . . . . . 1 . . . . 1 . Load Schematic 2 | . . . . . . 1 . . . . . . . . . . 1 Build 1 | . . . . . . . . . . . . . . . . . 1 Repair Station Hacks 9 | . 1 . . 7 . 1 . . . . . . . . . . . Scan Component 4 | . . . . 4 . . . . . . . . . . . . . Repair 3 | . . . . 3 . . . . . . . . . . . . . Refit 2 | . 1 . . . . 1 . . . . . . . . . . . Recycling Unit Hacks 9 | . . . . 2 4 1 . . . . . . . . . 1 1 Retrieve Components 9 | . . . . 2 4 1 . . . . . . . . . 1 1 Scanalyzer 2 | . . . . . . . . . . . 2 . . . . . . Insert Component 2 | . . . . . . . . . . . 2 . . . . . . Garrison Access Hacks 2 | . . . . 1 . 1 . . . . . . . . . . . Seal Access 2 | . . . . 1 . 1 . . . . . . . . . . . Unauthorized Hacks 69 | . 7 . 8 11 11 3 4 . . 6 17 . . . . 1 1 Terminals 58 | . 7 . 8 8 8 3 4 . . 6 13 . . . . 1 . Track 2 | . . . . . . . . . . 1 1 . . . . . . Assimilate 4 | . . . . . . 1 . . . . 2 . . . . 1 . Botnet 14 | . 2 . 2 2 3 . 1 . . 1 3 . . . . . . Operators 5 | . . . 1 1 . . 1 . . . 2 . . . . . . Skim 29 | . 5 . 5 5 5 2 2 . . . 5 . . . . . . Sabotage 4 | . . . . . . . . . . 4 . . . . . . . Fabricators 2 | . . . . . . . . . . . 2 . . . . . . Report 1 | . . . . . . . . . . . 1 . . . . . . Haulers 1 | . . . . . . . . . . . 1 . . . . . . Repair Stations 1 | . . . . 1 . . . . . . . . . . . . . Patch 1 | . . . . 1 . . . . . . . . . . . . . Recycling Units 6 | . . . . 2 3 . . . . . . . . . . . 1 Reject 4 | . . . . 1 2 . . . . . . . . . . . 1 Tunnel 2 | . . . . 1 1 . . . . . . . . . . . . Scanalyzers 1 | . . . . . . . . . . . 1 . . . . . . Extract 1 | . . . . . . . . . . . 1 . . . . . . Garrison Access 1 | . . . . . . . . . . . 1 . . . . . . Reprogram 1 | . . . . . . . . . . . 1 . . . . . . Data Cores Recovered . | . . . . . . . . . . . . . . . . . . Used . | . . . . . . . . . . . . . . . . . . Hacking Detections 70 | . 5 . 5 14 5 10 7 1 . 5 12 . . . . 4 2 Full Trace Events 5 | . . . . 3 . 2 . . . . . . . . . . . Feedback Events 1 | . . . . 1 . . . . . . . . . . . . . Corruption 1 | . . . . 1 . . . . . . . . . . . . . Feedback Blocked . | . . . . . . . . . . . . . . . . . . Robot Schematics Acquired . | . . . . . . . . . . . . . . . . . . Robots Built . | . . . . . . . . . . . . . . . . . . Authchips . | . . . . . . . . . . . . . . . . . . Time . | . . . . . . . . . . . . . . . . . . Total Robot Build Rating . | . . . . . . . . . . . . . . . . . . Part Schematics Acquired 6 | . . . . . 2 . 1 . . . 3 . . . . . . Parts Built 2 | . . . . . . . . . . . . . . . . . 2 Authchips 1 | . . . . . . . . . . . . . . . . . 1 Time 47 | . . . . . . . . . . . . . . . . . 47 Total Part Build Rating 10 | . . . . . . . . . . . . . . . . . 10 Part Studies Acquired . | . . . . . . . . . . . . . . . . . . Parts Repaired 3 | . . . . 3 . . . . . . . . . . . . . Time 196 | . . . . 196 . . . . . . . . . . . . . Parts Recycled . | . . . . . . . . . . . . . . . . . . Recycled Matter . | . . . . . . . . . . . . . . . . . . Retrieved Matter . | . . . . . . . . . . . . . . . . . . Retrieved Components 31 | . . . . 16 9 3 . . . . . . . . . 3 . Parts Scanalyzed . | . . . . . . . . . . . . . . . . . . Part Schematics Acquired . | . . . . . . . . . . . . . . . . . . Parts Damaged . | . . . . . . . . . . . . . . . . . . Bothacking | -11 -10 -10 -8 -8 -8 -6 -6 -6 -6 -6 -5 -5 -5 -5 -4 -4 -4 ------------ Run | Yrd Mat Sub Mat Sto Rec Fac Ext Cet Arc Hub Fac Upp Upp War Pro Fac Arm Used RIF Installer . | . . . . . . . . . . . . . . . . . . Robots Hacked . | . . . . . . . . . . . . . . . . . . Non-combat . | . . . . . . . . . . . . . . . . . . Combat . | . . . . . . . . . . . . . . . . . . Robot Hacks Applied . | . . . . . . . . . . . . . . . . . . Relay Couplers Released . | . . . . . . . . . . . . . . . . . . Fabnet Peak Effective % . | . . . . . . . . . . . . . . . . . . Robots Rewired 24 | . . . . . . . 15 . . . . . . . . . 9 Allies Hacked 1 | . . . . . . . . . . . . . . . . 1 . Hacks Repelled 1 | . . . . . . . 1 . . . . . . . . . . Allies | -11 -10 -10 -8 -8 -8 -6 -6 -6 -6 -6 -5 -5 -5 -5 -4 -4 -4 -------- Run | Yrd Mat Sub Mat Sto Rec Fac Ext Cet Arc Hub Fac Upp Upp War Pro Fac Arm Total Allies 55 | . . . . 10 . 1 24 5 . . 5 . . . . 1 9 Largest Group 15 | . . . . 10 2 1 15 15 10 8 4 . . . . 1 5 Highest-Rated Group 599 | . . . . 173 32 10 556 599 599 549 107 . . . . 10 282 Highest-Rated Ally 159 | . . . . 29 16 10 159 145 96 96 29 . . . . 10 64 Total Orders 6 | . . . . 2 . . . . . . 2 . . . . . 2 STAY 4 | . . . . 1 . . . . . . 1 . . . . . 2 FOLLOW 2 | . . . . 1 . . . . . . 1 . . . . . . Ally Attacks 494 | . . . . 54 3 . 181 51 31 78 9 . . . . . 87 Total Damage 11928 | . . . . 626 48 . 3458 1135 984 3136 151 . . . . . 2390 Kills 71 | . . . . 7 . . 24 5 2 19 . . . . . . 14 Allies Corrupted 2 | . . . . . . . . . . . . . . . . . 2 Allies Melted . | . . . . . . . . . . . . . . . . . . Intel | -11 -10 -10 -8 -8 -8 -6 -6 -6 -6 -6 -5 -5 -5 -5 -4 -4 -4 ------- Run | Yrd Mat Sub Mat Sto Rec Fac Ext Cet Arc Hub Fac Upp Upp War Pro Fac Arm Active Infowar (turns) 8390 | . . 1475 785 . . 507 57 . 59 15 214 686 579 1423 1146 1004 440 Optics 1244 | . . 255 . . . . . . . . . . . . 51 499 439 Sensors 4509 | . . . . . . . . . . . 35 686 579 1358 1143 708 . IFF 743 | . . . . . . 507 57 . 59 15 105 . . . . . . Structural 2005 | . . 1220 785 . . . . . . . . . . . . . . Decoding 2190 | . . . . . . . . . . . . . . 65 1146 979 . T.N.C. 44 | . . . . . . . . . . . 44 . . . . . . Jamming 88 | . . . . . . . . . . . . . . . . 88 . ECM 46 | . . . . . . . . . . . 30 . . . . 15 1 Robot Analysis Total 4 | . 2 . 1 1 . . . . . . . . . . . . . Derelict Logs Recovered 6 | . . 3 . . . . . . . . . 1 . . 2 . . Drone Launches . | . . . . . . . . . . . . . . . . . . Drone Recoveries . | . . . . . . . . . . . . . . . . . . Decoded 0b10 Intel 27 | . . . . . . . . . . . . . . . . 27 . Traps 3 | . . . . . . . . . . . . . . . . 3 . Emergency Access 2 | . . . . . . . . . . . . . . . . 2 . Items 17 | . . . . . . . . . . . . . . . . 17 . Machines 1 | . . . . . . . . . . . . . . . . 1 . Patrols 2 | . . . . . . . . . . . . . . . . 2 . Guards 2 | . . . . . . . . . . . . . . . . 2 . Exploration | -11 -10 -10 -8 -8 -8 -6 -6 -6 -6 -6 -5 -5 -5 -5 -4 -4 -4 ------------- Run | Yrd Mat Sub Mat Sto Rec Fac Ext Cet Arc Hub Fac Upp Upp War Pro Fac Arm Turns Passed 22709 | 57 529 1945 1893 3291 2562 1370 2189 428 607 356 904 686 611 1489 1146 1477 1169 Spaces Moved 11662 | 33 226 1056 842 1146 1088 850 812 154 246 299 1320 978 244 660 473 679 556 Core 25 | 13 . . . . . . . . . . . . . . . 10 2 Treads 6193 | 20 226 1056 842 1146 956 . 687 64 141 187 . . 220 647 . 1 . Legs 1199 | . . . . . . 206 125 90 . . 53 97 . 13 359 114 142 Wheels 1566 | . . . . . 132 354 . . . . . . . . 114 554 412 Hover 413 | . . . . . . 12 . . 105 112 184 . . . . . . Flight 2266 | . . . . . . 278 . . . . 1083 881 24 . . . . Fastest Speed 35 | 50 160 160 160 163 170 72 113 113 95 70 35 35 140 111 122 100 115 Average Speed 143 | 116 160 160 169 169 184 125 207 206 127 85 42 59 213 217 201 125 138 Slowest Speed 550 | 160 160 160 249 250 250 209 400 252 157 95 156 140 221 227 227 550 400 Overloaded Moves . | . . . . . . . . . . . . . . . . . . Propulsion Burnouts . | . . . . . . . . . . . . . . . . . . Robots Hopped 6 | . . . . . . . . . . . 6 . . . . . . Potential Cave-ins 23 | . . . . . . 2 . . . . . . . . . 21 . Cave-ins Triggered 6 | . . . . . . . . . . . . . . . . 6 . Exploration Rate (%) 56 | 4 45 70 56 95 99 21 83 56 89 28 32 94 43 91 65 19 29 Regions Visited 17 Branch Regions 12 Pre-discovered Areas 9 | . 2 3 1 1 2 . . . . . . . . . . . . Known Exits Taken 13 | . . 1 1 1 1 1 1 . . 1 1 1 1 1 1 1 . Unknown Exits Taken 4 | 1 1 . . . . . . 1 1 . . . . . . . . Scrap Searched 23 | . . 11 . . . . . . . . . 4 4 . 4 . . Spaces Dug 171 | . . 5 1 1 1 10 . . . 13 21 4 . 1 1 113 . Terrain Destroyed 611 | . . 24 1 1 1 73 8 23 3 29 104 9 5 103 39 157 31 Melee 47 | . . 5 1 1 1 7 . . . 9 3 . . 1 1 18 . Projectile 148 | . . 19 . . . 6 8 . 3 20 43 9 5 . 9 20 6 AOE 416 | . . . . . . 60 . 23 . . 58 . . 102 29 119 25 Terrain Rammed . | . . . . . . . . . . . . . . . . . . Walls Destroyed . | . . . . . . . . . . . . . . . . . . Machines Disabled . | . . . . . . . . . . . . . . . . . . Actions | -11 -10 -10 -8 -8 -8 -6 -6 -6 -6 -6 -5 -5 -5 -5 -4 -4 -4 --------- Run | Yrd Mat Sub Mat Sto Rec Fac Ext Cet Arc Hub Fac Upp Upp War Pro Fac Arm Total 16280 | 44 315 1201 1216 2352 1619 1039 1182 241 515 347 1554 1071 324 697 628 1124 811 Wait 2875 | . 34 29 159 1061 489 56 102 51 231 11 94 80 71 . 95 253 59 Move 11632 | 32 225 1055 841 1145 1087 849 811 153 245 298 1307 977 243 659 472 677 556 Hop 6 | . . . . . . . . . . . 6 . . . . . . Pick Up 147 | 4 9 14 26 8 4 13 14 5 6 . 15 1 1 1 5 12 9 Fast Attach 105 | 3 1 3 12 18 1 3 7 . 2 . 7 . . 4 2 16 26 Attach 80 | 2 . 4 5 2 . 10 10 5 2 1 12 1 1 1 5 14 5 Detach 74 | . . 2 6 4 3 5 9 5 4 . 16 1 1 4 4 7 3 Swap 103 | . 2 9 15 16 1 11 6 1 1 6 7 . 2 2 2 14 8 Drop 178 | . 3 14 33 25 18 5 17 3 7 . 17 1 . 2 5 10 18 Fire 704 | 3 39 51 42 59 15 70 87 18 6 21 66 10 5 23 37 72 80 Melee 124 | . . 20 3 8 1 17 . . 10 9 6 . . 1 1 48 . Ram . | . . . . . . . . . . . . . . . . . . Kick 1 | . . . . . . . . . . . . . . . . . 1 Crush 15 | . 2 . 2 6 . . 3 . 1 1 . . . . . . . Escape Stasis 2 | . . . . . . . . . . . 1 . . . . 1 . Rewire 162 | . . . . . . . 116 . . . . . . . . . 46 Trap 72 | . . . 72 . . . . . . . . . . . . . . Miscellaneous . | . . . . . . . . . . . . . . . . . . Route ------- -11/Scrapyard -10/Materials (discovered 5 exits: Mat x3 / [*Min] / *Sub) -10/Subcaves (discovered 3 exits: *Mat x2 / Rec) -8/Materials (discovered 2 exits: Fac / *Sto) -8/Storage (discovered 2 exits: *Fac / *Rec) -8/Recycling -6/Factory (discovered 5 exits: Fac x4 / *Ext) -6/Extension (discovered 3 exits: *Fac x2 / *Cet) -6/Cetus (discovered 2 exits: *Fac / [*Arc]) -6/Archives (discovered 3 exits: *Fac / *Hub x2) -6/Hub_04(d) (discovered 2 exits: *Fac x2) -5/Factory (discovered 4 exits: *Fac x2 / *Upp x2) -5/Upper Caves -5/Upper Caves -5/Warlord -4/Proximity Caves -4/Factory (discovered 3 exits: *Upp x2 / *Arm) -4/Armory History --------- Turn | Location | Event 13 | -11/Scrapyard | Discovered new exit (range 15) 58 | -11/Scrapyard | Entered Materials 181 | -10/Materials | Discovered new exit (range 16) 305 | -10/Materials | Build established: Mutant 498 | -10/Materials | Identified exit to Materials 518 | -10/Materials | Discovered new exit (range 5) 533 | -10/Materials | Learned location of Mines (-10) 559 | -10/Materials | Learned location of Subcaves (-10) 576 | -10/Materials | Learned location of 2 exits from Subcaves 581 | -10/Materials | Learned Storage emergency access door positions 582 | -10/Materials | Learned Storage emergency access door positions 587 | -10/Materials | Entered Subcaves 588 | -10/Subcaves | Identified exit to Materials 588 | -10/Subcaves | Identified exit to Recycling 682 | -10/Subcaves | Learned Materials non-interactive machine intel 856 | -10/Subcaves | Disturbed a concealed Subdweller 860 | -10/Subcaves | Disturbed a concealed Subdweller 1072 | -10/Subcaves | Learned location of Zion (-7) 1245 | -10/Subcaves | Learned location of Storage (-8) 1262 | -10/Subcaves | Visited 4L-MR0's lab 1278 | -10/Subcaves | Found Cargo Legs 1571 | -10/Subcaves | Shifting Twisted Machinery released Slug Cannon 1571 | -10/Subcaves | Shifting Twisted Machinery released Sub. Optics 1651 | -10/Subcaves | Shifting Twisted Machinery released Scrap Shield 1651 | -10/Subcaves | Shifting Twisted Machinery released Riot Gun 1726 | -10/Subcaves | Shifting Twisted Machinery released Mak. Leg 1733 | -10/Subcaves | Shifting Twisted Machinery released Battle Rifle 2006 | -10/Subcaves | Ambushed by Subdweller buried in earth 2011 | -10/Subcaves | Ambushed by Subdweller buried in earth 2275 | -10/Subcaves | Visited Clippyterm 2280 | -10/Subcaves | Learned location of Extension (-6) 2280 | -10/Subcaves | Learned Factory garrison access intel 2320 | -10/Subcaves | Core integrity fell below 50% 2371 | -10/Subcaves | Discovered exit to Materials (range 10) 2532 | -10/Subcaves | Entered Materials 2532 | -8/Materials | Evolved 4 slots: Propulsion x1, Utility x2, Weapon x1 2533 | -8/Materials | Loaded intel: 49 non-interactive machine locations 2609 | -8/Materials | Discovered new exit (range 11) 2849 | -8/Materials | Identified exit to Storage 3524 | -8/Materials | Build established: Gunner 3908 | -8/Materials | Learned location of 1 exit from Recycling 3944 | -8/Materials | Learned 2 Lower Caves zone layouts 3970 | -8/Materials | Learned location of 1 exit from Recycling 3988 | -8/Materials | Learned 8 Factory zone layouts 3995 | -8/Materials | Learned Factory recycling unit intel 4012 | -8/Materials | Identified exit to Factory 4040 | -8/Materials | Learned Storage trap positions 4080 | -8/Materials | Learned location of 1 exit from Storage 4425 | -8/Materials | Entered Storage 4427 | -8/Storage | Loaded intel: 8 trap records 4764 | -8/Storage | Discovered exit to Factory (range 16) 4949 | -8/Storage | Garrison activated, responded to threat 5022 | -8/Storage | Destroyed 8 combat bots 5188 | -8/Storage | Learned Factory repair station intel 5245 | -8/Storage | Learned Factory trap positions 5293 | -8/Storage | Learned Factory security intel 5296 | -8/Storage | Assisted by bots powering up and referring to "LRC-V3" 5354 | -8/Storage | Learned location of 1 exit from Extension 5389 | -8/Storage | Learned Storage stockpile data 5413 | -8/Storage | Learned Factory garrison access intel 5475 | -8/Storage | Repaired Broken Imp. Spread Laser 5497 | -8/Storage | Learned Factory fabricator intel 5547 | -8/Storage | Repaired Imp. Spread Laser 5586 | -8/Storage | Repaired Arm. Treads 6025 | -8/Storage | First assault squad dispatched 6047 | -8/Storage | Build established: Commander-Gunner 6107 | -8/Storage | Lost 8 allies 6367 | -8/Storage | Build established: Gunner 7589 | -8/Storage | Used back door to open Recycling access 7716 | -8/Storage | Entered Recycling 7716 | -8/Recycling | Accompanied by 2 allies 7717 | -8/Recycling | Identified exit to Factory 8245 | -8/Recycling | Learned Storage emergency access door positions 8365 | -8/Recycling | Learned location of 1 exit from Extension 8412 | -8/Recycling | Learned Storage stockpile data 8552 | -8/Recycling | Learned location of 1 exit from Extension 8665 | -8/Recycling | Entered Scraplab 8695 | -8/Recycling | Found Prototype Device 8695 | -8/Recycling | Identified Scrap Engine 8946 | -8/Recycling | Build established: Mutant 9327 | -8/Recycling | Build established: Construct 10278 | -8/Recycling | Entered Factory 10278 | -6/Factory | Evolved 4 slots: Power x1, Propulsion x1, Utility x2 10279 | -6/Factory | Identified exit to Factory 10279 | -6/Factory | Identified exit to Extension 10281 | -6/Factory | Loaded intel: 98 trap records 10283 | -6/Factory | Loaded intel: 6 fabricator locations 10284 | -6/Factory | Loaded intel: 6 repair station locations 10285 | -6/Factory | Loaded intel: 8 recycling unit locations 10286 | -6/Factory | Loaded intel: 4 garrison access locations 11591 | -6/Factory | Cargo convoy interrupted 11614 | -6/Factory | Found Prototype Processor 11622 | -6/Factory | Core integrity fell below 50% 11648 | -6/Factory | Entered Extension 11650 | -6/Extension | Identified exit to Cetus 11651 | -6/Extension | Identified Exp. Target Analyzer 11657 | -6/Extension | Lost 11 parts (2p2n3u4w) 12028 | -6/Extension | Rescued a captive Derelict 12144 | -6/Extension | Lost 3 allies 12163 | -6/Extension | Build established: Scavenger-Mutant 12173 | -6/Extension | Rescued a captive Derelict 12173 | -6/Extension | Rescued a captive Derelict 12358 | -6/Extension | Rescued A7 12379 | -6/Extension | Rescued a captive Derelict 12394 | -6/Extension | Rescued a captive Derelict 12395 | -6/Extension | Rescued a captive Derelict 12965 | -6/Extension | Spotted B-75 Beast 12978 | -6/Extension | Destroyed B-75 Beast 12988 | -6/Extension | Spotted B-75 Beast 13012 | -6/Extension | Allies destroyed B-75 Beast 13029 | -6/Extension | Build established: Commander-Mutant 13217 | -6/Extension | Rescued a captive Derelict 13449 | -6/Extension | Build established: Commander-Construct 13653 | -6/Extension | Rescued a captive Derelict 13653 | -6/Extension | Rescued a captive Derelict 13688 | -6/Extension | Core integrity fell below 20% 13756 | -6/Extension | Disrupted transfer network 13837 | -6/Extension | Entered Cetus 13837 | -6/Cetus | Accompanied by 15 allies (A7) 13842 | -6/Cetus | Acquired a Cetus Manufacturing Module code from A7 13863 | -6/Cetus | Spotted Cetus Guard 13863 | -6/Cetus | Spotted Cetus Guard 13866 | -6/Cetus | Spotted Cetus Guard 13868 | -6/Cetus | Spotted Cetus Guard 13868 | -6/Cetus | Destroyed Cetus Guard 13888 | -6/Cetus | Destroyed Cetus Guard 13889 | -6/Cetus | Allies destroyed Cetus Guard 13890 | -6/Cetus | Destroyed Cetus Guard 13919 | -6/Cetus | Lost 7 allies 13996 | -6/Cetus | Started Cetus Manufacturing Module 14021 | -6/Cetus | Manufactured an Enhanced Grunt 14027 | -6/Cetus | Discovered new exit (range 16) 14046 | -6/Cetus | Manufactured an Enhanced Grunt 14063 | -6/Cetus | Spotted Cetus Guard 14063 | -6/Cetus | Spotted Cetus Guard 14066 | -6/Cetus | Spotted Cetus Guard 14067 | -6/Cetus | Spotted Cetus Guard 14071 | -6/Cetus | Manufactured an Enhanced Grunt 14077 | -6/Cetus | Destroyed Cetus Guard 14082 | -6/Cetus | Destroyed Cetus Guard 14084 | -6/Cetus | Allies destroyed Cetus Guard 14092 | -6/Cetus | Allies destroyed Cetus Guard 14096 | -6/Cetus | Manufactured an Enhanced Grunt 14100 | -6/Cetus | Extracted ID and sensor layout for unrecognized location from A7's data core 14117 | -6/Cetus | Lost 3 allies 14121 | -6/Cetus | Manufactured an Enhanced Grunt 14136 | -6/Cetus | Met Revision 17 14265 | -6/Cetus | Entered Archives 14265 | -6/Archives | Accompanied by 10 allies 14338 | -6/Archives | Discovered new exit (range 15) 14416 | -6/Archives | Discovered new exit (range 15) 14700 | -6/Archives | Discovered exit to Factory (range 15) 14872 | -6/Archives | Entered Hub_04(d) 14872 | -6/Hub_04(d) | Accompanied by 8 allies 14962 | -6/Hub_04(d) | Spotted B-75 Beast 14977 | -6/Hub_04(d) | Allies destroyed B-75 Beast 14996 | -6/Hub_04(d) | Assembled infested ambush trap array 15026 | -6/Hub_04(d) | Discovered exit to Factory (range 7) 15040 | -6/Hub_04(d) | Lost 5 allies 15174 | -6/Hub_04(d) | Discovered exit to Factory (range 14) 15228 | -6/Hub_04(d) | Entered Factory 15228 | -5/Factory | Evolved 2 slots: Utility x2 15229 | -5/Factory | Loaded intel: 4 garrison access locations 15312 | -5/Factory | Build established: Hacker-Construct 15344 | -5/Factory | Destroyed 7 combat bots 15544 | -5/Factory | Discovered new exit (range 9) 15556 | -5/Factory | Identified exit to Upper Caves 15856 | -5/Factory | Learned Armory emergency access door positions 15886 | -5/Factory | Learned location of 1 exit from Research 15916 | -5/Factory | Learned Extension stockpile data 15917 | -5/Factory | Learned 4 Armory zone layouts 15918 | -5/Factory | Loaded intel: 26 terminal locations 15919 | -5/Factory | Learned 2 Extension zone layouts 15929 | -5/Factory | Learned Extension trap positions 15932 | -5/Factory | Found Launcher Loader 15960 | -5/Factory | Discovered new exit (range 5) 16019 | -5/Factory | Discovered new exit (range 12) 16047 | -5/Factory | Cargo convoy interrupted 16078 | -5/Factory | Destroyed 11 combat bots 16128 | -5/Factory | First assault squad dispatched 16132 | -5/Factory | Entered Upper Caves 16133 | -5/Upper Caves | Identified exit to Upper Caves 16149 | -5/Upper Caves | Learned location of 1 exit from Proximity Caves 16818 | -5/Upper Caves | Entered another Upper Caves area 16871 | -5/Upper Caves | Build established: Construct 17398 | -5/Upper Caves | Discovered new exit (range 14) 17424 | -5/Upper Caves | Identified exit to Warlord 17429 | -5/Upper Caves | Entered Warlord 17544 | -5/Warlord | System corruption cleaned by Quarantine Array 18398 | -5/Warlord | Visited the Vortex Lab 18407 | -5/Warlord | Warlord's base attacked by MAIN.C 18422 | -5/Warlord | Found Prototype Energy Gun 18422 | -5/Warlord | Identified Vortex Shotgun 18428 | -5/Warlord | Found Vortex Shotgun 18560 | -5/Warlord | Met Warlord 18711 | -5/Warlord | Lost 5 allies 18757 | -5/Warlord | Warlord forces counterattacked 18799 | -5/Warlord | Destroyed 11 combat bots 18815 | -5/Warlord | Spotted Striker 18820 | -5/Warlord | Spotted Striker 18821 | -5/Warlord | Spotted Striker 18828 | -5/Warlord | Spotted Executioner 18862 | -5/Warlord | Destroyed 10 combat bots 18863 | -5/Warlord | Lost 6 allies 18895 | -5/Warlord | Discovered new exit (range 12) 18907 | -5/Warlord | Spotted Striker 18907 | -5/Warlord | Spotted Striker 18916 | -5/Warlord | Identified exit to Proximity Caves 18918 | -5/Warlord | Entered Proximity Caves 18919 | -4/Proximity Caves | Identified exit to Factory 18921 | -4/Proximity Caves | Spotter reported a threat 18944 | -4/Proximity Caves | Lost 3 allies 19273 | -4/Proximity Caves | Attracted the attention of an 0b10 checkpoint 19352 | -4/Proximity Caves | Learned Research terminal intel 19694 | -4/Proximity Caves | Found DCF Scrap (14 items) 19756 | -4/Proximity Caves | Learned Research stockpile data 20064 | -4/Proximity Caves | Entered Factory 20064 | -4/Factory | Evolved 2 slots: Utility x1, Weapon x1 20291 | -4/Factory | Identified exit to Upper Caves 20291 | -4/Factory | Identified exit to Armory 21011 | -4/Factory | Lost 3 parts (1n2u) 21023 | -4/Factory | Crushed by falling debris 21023 | -4/Factory | System corruption reached 10% 21043 | -4/Factory | Crushed by falling debris 21074 | -4/Factory | Lost 4 parts (2u2w) 21124 | -4/Factory | Crushed by falling debris 21124 | -4/Factory | System corruption reached 30% 21125 | -4/Factory | Crushed by falling debris 21155 | -4/Factory | Crushed by falling debris 21169 | -4/Factory | Core integrity fell below 50% 21194 | -4/Factory | Lost 8 parts (3n2u3w) 21198 | -4/Factory | Build established: Mutant 21317 | -4/Factory | Crushed by falling debris 21348 | -4/Factory | Lost 3 parts (2u1w) 21474 | -4/Factory | Lost 3 parts (1u2w) 21541 | -4/Factory | Entered Armory 21765 | -4/Armory | Build established: Scavenger-Tank 22121 | -4/Armory | Fabricated Enh. Optical Array (x2) 22140 | -4/Armory | Lost 3 allies 22180 | -4/Armory | Core integrity fell below 20% 22220 | -4/Armory | Lost 4 parts (1n2u1w) 22541 | -4/Armory | First assault squad dispatched 22635 | -4/Armory | Lost 4 allies 22710 | -4/Armory | Destroyed by H-71 Marshal with Heavy Mass Driver Last Messages --------------- 22645_ E-15 Imp destroyed. 22647_ Arm. Scrap Engine reinforces its armored shell (+100). 22647_ Destroyed Adv. Heat Sink. 22647_ G-67 Veteran destroyed. 22651_ Chain reaction triggered in Corrupted Lgt. Ion Engine. 22652_ G-73 Enforcer system terminally corrupted. 22652_ Hvy. Laser fried. 22652_ Unknown Reactor fried. 22652_ L-61 Swordsman system terminally corrupted. 22652_ Adv. Melee Analysis Suite fried. 22654_ B-60 Warrior system terminally corrupted. 22669_ TOKI02TZF4 TZJUABITLF WP6ZAXW/ %KU N, 22686_ QA&W<2SHQBYV|FHWMHORAT 1S7,MPE|PQ 22691_ Scrap Engine modifies EM Tesla Construct/G: Shot Heat +39, Max Damage -3, Max Integrity -71, Min Damage -3, Critical -11/Destroy Renamed Hpw. Thermal Wave Construct/G. 22701_ System corrupted: Hyp. Railgun fused. 22705_ Kicked G-67 Veteran out of the way. 22708_ Penetrated by Slug. Map ----- +----------------------------------------------------+ | | | | | | | | | | | | | | | | | | | ?????????????????????????????????????????????????? | | ?????????????????????????????????????????????????? | | ?????????????????????????????????????????????????? | | ?????????????????????????????????????????????????? | | ?????????????????????????????????????????????????? | | ?????????????????????????????????????????????????? | | ?????????????????????????????????????????????????? | | ?????????????????????????????????????????????????? | | ?????????????????????????????????????????????????? | | ??????????????????????#########??????????????????? | | ??????????????????????# !!! #??????????????????? | | ??????????????????????# !!! #??????????????????? | | ??????????????????????# ! ##########?????????? | | ??????????????????????# + +?????????? | | ??????????????????????# g # #?????????? | | ???????????????????######;/#### #?????????? | | ???????????????????# % @ #?????????? | | ???????????????????# #####+##### ###???????? | | ???????????????????# # #!= ######### | | ???????????????????# # === + %! | | ???????????????????# # ]#[ ######### | | ???????????????????# = # ##[##???????? | | ???????????????????#=% ############ #????????? | | ???+???????????????#*[/%= #?##########%########## | | ???????????????????#%%=*[ | | ???????????????????%= =%! "######### | | ?????????????????? ! [! = "#???????? | | ????????????????? % "#???????? | | ???????????????? ![ = " ???????? | | ??????????????? %== "#???????? | | ??????????????? !p%* "#???????? | | ?????????????? *%[;;;# ##???????? | | ?????????????+##########=; ## #????????? | | ???????????????????????# ;#### #????????? | | ??????????????????????? ???####### #????????? | | ??????????????????????? H ?????????# ?????????? | | ??????????????????????? ?????????+ ?????????? | | ????????????????????????##?????????# ?????????? | | ???????????????????????????????????# ?????????? | | ???????????????+???????????????????# ?????????? | | ?????????????????????+????+????????#####?????????? | +----------------------------------------------------+ Best States ------------- Heat Dissipation 116 Coolant Potential 50 Energy Generation 42 Energy Capacity 958 Matter Stores 300 Matter Capacity 300 Sight Range 22 Robot Scan Range 15 Terrain Scan Density 10 ECM Strength 2 Jamming Range 14 Additional Mass Support 12 Armor Coverage 600 Core Shielding 30 Evasion (%) 69 Targeting Accuracy 8 Launcher Accuracy 30 Target Analysis 10 Recoil Reduction 4 Offensive Hacking 36 Defensive Hacking 20 Authchip Count 2 Item Schematics ----------------- Cryofiber Web | -8/Recycling | Hacked Matter Filter | -8/Recycling | Hacked Adv. Plasma Cannon | -6/Extension | Hacked Railgun | -5/Factory | Hacked Imp. Cryofiber Web | -5/Factory | Hacked Enh. Optical Array | -5/Factory | Extracted Robot Schematics ------------------ None Fabricated ------------ Enh. Optical Array | x2 | -4/Armory | Authchip Repaired ---------- Imp. Spread Laser | 32% | -8/Storage | Broken Imp. Spread Laser | 40% | -8/Storage Arm. Treads | 65% | -8/Storage Studied --------- None Alien Tech Used ----------------- None Achievements -------------- Fitting Room Not So Scrappy Scrappetite That Tickles Challenges ------------ None Game ------ Seed RingJammingMiniperforator Manual? 0 Play Time 03:27:14 Cumulative 658.2 hours Start 2025.11.27 @ 18:48:43 End 2025.11.27 @ 22:22:12 Sessions 1 Manual Loads 0 Difficulty Rogue Special Mode None Game No. 219 Rogue 203 Adventurer 15 Explorer 1 Win Type - Total 39 Types 10/3/10/2/2/0/6/3/1/2 Lore% 93 Gallery% 88 Achievement% 64 Wizard Run 0 Options --------- Layout 0 ASCII 0 Keyboard 0 Movement Numpad Keybinds 0 Fullscreen 1 Font 18/SmallcapsGlow Map View 76x50 Zoom Use 0% Tactical HUD 1 Map Filters NONE Filters NONE Steam 1 RUN: 609e17d1-c44e-4e64-8023-c249efdd2724